fUSD/lending_fUSD_20250426
["ID","MTS","AMOUNT","RATE_DAILY","PERIOD"]
[359072325,1745693460074,-150.0,0.00019918,2]
[359072326,1745693460084,-150.0,0.00019919,2]
[359072327,1745693460093,-150.0,0.0001992,2]
[359072328,1745693460103,-150.0,0.00019925,2]
[359072329,1745693460112,-150.0,0.00019929,2]
[359072330,1745693460122,-150.0,0.00019931,2]
[359072331,1745693460131,-150.0,0.00019931,2]
[359072332,1745693460141,-289.622557,0.00019932,2]
[359072333,1745693460150,-289.622557,0.00019932,2]
[359072334,1745693460159,-150.0,0.00019938,2]
[359072335,1745693460169,-150.0,0.00019943,2]
[359072336,1745693460178,-613.0,0.00019943,2]
[359072337,1745693460188,-606.13389872,0.00019943,2]
[359072338,1745693460197,-150.0,0.0001995,2]
[359072339,1745693460207,-150.0,0.0001995,2]
[359072340,1745693460217,-150.0,0.00019951,2]
[359072341,1745693460226,-150.0,0.00019951,2]
[359072342,1745693460236,-150.0,0.00019954,2]
[359072343,1745693460245,-150.0,0.00019954,2]
[359072344,1745693460255,-150.0,0.00019957,2]
[359072345,1745693460265,-150.0,0.00019958,2]
[359072346,1745693460274,-150.0,0.00019959,2]
[359072347,1745693460283,-150.0,0.0001996,2]
[359072348,1745693460292,-1336.0,0.00019965,2]
[359072349,1745693460301,-920.0,0.00019965,2]
[359072350,1745693460311,-1287.0,0.00019965,2]
[359072351,1745693460321,-796.0,0.00019965,2]
[359072352,1745693460331,-579.0,0.00019965,2]
[359072353,1745693460342,-911.0,0.00019965,2]
[359072354,1745693460353,-548.0,0.00019965,2]
[359072355,1745693460363,-2063.0,0.00019965,2]
[359072356,1745693460373,-1446.0,0.00019965,2]
[359072357,1745693460384,-6193.0,0.00019965,2]
[359072358,1745693460393,-201.859,0.00019965,2]
[359072359,1745693460404,-257.141,0.00019965,2]
[359072360,1745693460413,-872.0,0.00019965,2]
[359072361,1745693460423,-2149.0,0.00019965,2]
[359072362,1745693460432,-3991.0,0.00019965,2]
[359072363,1745693460442,-877.0,0.00019965,2]
[359072364,1745693460451,-150.0,0.00019966,2]
[359072365,1745693460460,-613.0,0.00019971,2]
[359072366,1745693460469,-150.0,0.00019971,2]
[359072367,1745693460481,-1350.8,0.00019972,2]
[359072368,1745693460491,-1350.8,0.00019972,2]
[359072369,1745693460502,-1350.8,0.00019972,2]
[359072370,1745693460512,-1350.8,0.00019972,2]
[359072371,1745693460522,-1350.8,0.00019972,2]
[359072372,1745693460532,-1350.8,0.00019972,2]
[359072373,1745693460542,-1350.8,0.00019972,2]
[359072374,1745693460551,-1350.8,0.00019972,2]
[359072375,1745693460561,-1350.8,0.00019972,2]
[359072376,1745693460570,-1350.8,0.00019972,2]
[359072377,1745693460580,-1350.8,0.00019972,2]
[359072378,1745693460589,-1350.8,0.00019972,2]
[359072379,1745693460599,-1350.8,0.00019972,2]
[359072380,1745693460609,-1350.8,0.00019972,2]
[359072381,1745693460618,-1350.8,0.00019972,2]
[359072382,1745693460629,-1350.8,0.00019972,2]
[359072383,1745693460638,-1350.8,0.00019972,2]
[359072384,1745693460648,-1350.8,0.00019972,2]
[359072385,1745693460658,-1350.8,0.00019972,2]
[359072386,1745693460670,-1350.8,0.00019972,2]
[359072387,1745693460680,-1350.8,0.00019972,2]
[359072388,1745693460690,-1350.8,0.00019972,2]
[359072389,1745693460700,-1350.8,0.00019972,2]
[359072390,1745693460710,-1350.91423895,0.00019972,2]
[359072391,1745693460720,-37071.0,0.00019973,2]
[359072392,1745693460731,-500.0,0.00019973,2]
[359072393,1745693460743,-500.0,0.00019973,2]
[359072394,1745693460753,-500.0,0.00019973,2]
[359072395,1745693460764,-500.0,0.00019973,2]
[359072396,1745693460775,-500.0,0.00019973,2]
[359072397,1745693460788,-500.0,0.00019973,2]
[359072398,1745693460800,-2667.0,0.00019973,2]
[359072399,1745693460830,-150.0,0.0001998,2]
[359072400,1745693460841,-289.622557,0.00019986,2]
[359072401,1745693460853,-289.622557,0.00019986,2]
[359072402,1745693460864,-289.622557,0.00019986,2]
[359072403,1745693460874,-289.622557,0.00019986,2]
[359072404,1745693460884,-13248.8776519,0.00019986,2]
[359072405,1745693460894,-40772.8455669,0.00019986,2]
[359072406,1745693460903,-3956.8503624,0.00019986,2]
[359072407,1745693460913,-151.0,0.00019986,2]
[359072408,1745693460925,-151.0,0.00019986,2]
[359072409,1745693460935,-176.852989,0.00019986,2]
[359072410,1745693460946,-213.105836,0.00019986,2]
[359072411,1745693460957,-151.0,0.00019986,2]
[359072412,1745693460967,-151.0,0.00019986,2]
[359072413,1745693460977,-353.425777,0.00019986,2]
[359072414,1745693460987,-187.388204,0.00019986,2]
[359072415,1745693460998,-353.425777,0.00019986,2]
[359072416,1745693461008,-187.388204,0.00019986,2]
[359072417,1745693461018,-151.0,0.00019986,2]
[359072418,1745693461028,-151.0,0.00019986,2]
[359072419,1745693461039,-153.995718,0.00019986,2]
[359072420,1745693461050,-151.0,0.00019986,2]
[359072421,1745693461061,-151.0,0.00019986,2]
[359072422,1745693461073,-151.0,0.00019986,2]
[359072423,1745693461083,-151.0,0.00019986,2]
[359072424,1745693461094,-151.0,0.00019986,2]
[359072425,1745693461104,-153.419571,0.00019986,2]
[359072426,1745693461114,-357.574016,0.00019986,2]
[359072427,1745693461124,-368.721176,0.00019986,2]
[359072428,1745693461135,-357.574016,0.00019986,2]
[359072429,1745693461146,-368.721176,0.00019986,2]
[359072430,1745693461157,-151.0,0.00019986,2]
[359072431,1745693461167,-151.0,0.00019986,2]
[359072432,1745693461177,-151.0,0.00019986,2]
[359072433,1745693461188,-203.166588,0.00019986,2]
[359072434,1745693461199,-60708.16867026,0.00019986,2]
[359072435,1745693461699,-1737.32965074,0.00019986,2]
[359072436,1745693461710,-203.166588,0.00019986,2]
[359072437,1745693461720,-1000.0,0.00019989,2]
[359072438,1745693461730,-807.92825936,0.0001999,2]
[359072439,1745693461740,-807.92825936,0.0001999,2]
[359072440,1745693461750,-613.0,0.00019998,2]
[359072441,1745693461760,-500.0,0.00019999,2]
[359072442,1745693461771,-500.0,0.00019999,2]
[359072443,1745693461781,-500.0,0.00019999,2]
[359072444,1745693461793,-263.09905844,0.00019999,2]
[359072445,1745693461803,-500.0,0.00019999,2]
[359072446,1745693461831,-330.23165471,0.00019999,2]
[359072447,1745693461841,-500.0,0.00019999,2]
[359072448,1745693461851,-300.0,0.00019999,2]
[359072449,1745693461860,-305.73026973,0.00019999,2]
[359072450,1745693461870,-464776.53365642,0.0002,2]
[359072451,1745693461880,-1539156.69870037,0.0002,2]
[359072452,1745693461892,-5276.70000006,0.0002,2]
[359072453,1745693462085,-200.0,0.00019595,2]
[359072454,1745693462656,-200.0,0.00019595,2]
[359072455,1745693462666,-500.0,0.00019595,2]
[359072456,1745693462676,-350.04,0.00019869,2]
[359072457,1745693462686,-1861.36340289,0.0002,2]
[359072458,1745693462698,-1401.6,0.0002,2]
[359072459,1745693462715,-7196.72960958,0.0002,2]
[359072460,1745693462727,-11104.40000003,0.0002,2]
[359072461,1745693462739,-18577.6464,0.0002,2]
[359072462,1745693463160,-1279357.30109877,0.0002,2]
[359072463,1745693463269,-866.38821776,0.0002,2]
[359072464,1745693463766,-400.0,0.00019595,2]
[359072465,1745693463777,-500.0,0.00019596,2]
[359072466,1745693463787,-400.0,0.00019596,2]
[359072467,1745693463800,-236.25,0.00019869,2]
[359072468,1745693463810,-238.38,0.0001987,2]
[359072469,1745693464037,-19108.86999921,0.0002,2]
[359072470,1745693464049,-33183.78218419,0.0002,2]
[359072471,1745693464522,-263.17231322,0.00019594,2]
[359072472,1745693465030,-136.82768678,0.00019594,2]
[359072473,1745693465056,-63.17231322,0.00019595,2]
[359072474,1745693468616,-200.0,0.00019594,2]
[359072475,1745693472758,-200.0,0.00019594,2]
[359072476,1745693472782,-5.26708458,0.00019594,2]
[359072477,1745693490728,-152.0,0.00019383,2]
[359072478,1745693522320,-161.33106,0.00019382,2]
[359072479,1745693569348,-138.66894,0.00019382,2]
[359072480,1745693569373,-104.07666186,0.00019383,2]
[359072481,1745693711935,16000.0,0.00018777,2]
[359072482,1745693729122,200.0,0.000191,2]
[359072484,1745693753420,1332.69,0.00018777,2]
[359072485,1745693759047,-95.92333814,0.00019383,2]
[359072486,1745693770878,200.0,0.00018778,2]
[359072487,1745693830045,2000.0,0.00018773,2]
[359072489,1745694062044,-574.48809364,0.00019493,2]
[359072490,1745694062075,-500.0,0.00019493,2]
[359072491,1745694062112,-200.0,0.00019493,2]
[359072492,1745694062148,-574.48809364,0.00019494,2]
[359072493,1745694062185,-1200.0,0.00019494,2]
[359072494,1745694062221,-300.0,0.00019494,2]
[359072495,1745694062255,-1001.34212963,0.00019495,2]
[359072496,1745694062288,-8215.64561799,0.00019495,2]
[359072497,1745694062319,-215.54,0.0001951,2]
[359072498,1745694062354,-500.0,0.00019539,2]
[359072499,1745694062386,-500.0,0.00019539,2]
[359072500,1745694062419,-500.0,0.00019539,2]
[359072501,1745694062455,-500.0,0.00019539,2]
[359072502,1745694062487,-500.0,0.00019539,2]
[359072503,1745694062520,-500.0,0.00019539,2]
[359072504,1745694062552,-500.0,0.00019539,2]
[359072505,1745694062590,-500.0,0.00019539,2]
[359072506,1745694062626,-500.0,0.00019539,2]
[359072507,1745694062660,-500.0,0.00019539,2]
[359072508,1745694062694,-500.0,0.00019539,2]
[359072509,1745694062728,-500.0,0.00019539,2]
[359072510,1745694062762,-500.0,0.00019539,2]
[359072511,1745694062796,-500.0,0.00019539,2]
[359072512,1745694062831,-500.0,0.00019539,2]
[359072513,1745694062862,-500.0,0.00019539,2]
[359072514,1745694062893,-500.0,0.00019539,2]
[359072515,1745694062929,-500.0,0.00019539,2]
[359072516,1745694062963,-500.0,0.00019539,2]
[359072517,1745694062995,-500.0,0.00019539,2]
[359072518,1745694063027,-500.0,0.00019539,2]
[359072519,1745694063059,-500.0,0.00019539,2]
[359072520,1745694063099,-500.0,0.00019539,2]
[359072521,1745694063134,-500.0,0.00019539,2]
[359072522,1745694063169,-500.0,0.00019539,2]
[359072523,1745694063202,-500.0,0.00019539,2]
[359072524,1745694063235,-500.0,0.00019539,2]
[359072525,1745694063267,-282.46334747,0.00019539,2]
[359072526,1745694063300,-500.0,0.00019539,2]
[359072527,1745694063334,-500.0,0.00019539,2]
[359072528,1745694063367,-500.0,0.00019539,2]
[359072529,1745694063398,-500.0,0.00019539,2]
[359072530,1745694063429,-300.0,0.00019539,2]
[359072531,1745694063463,-8215.64561793,0.0001954,2]
[359072532,1745694063493,-1001.34212956,0.00019553,2]
[359072533,1745694063523,-204.12031234,0.00019573,2]
[359072534,1745694063553,-500.0,0.00019573,2]
[359072535,1745694063585,-207.4,0.00019584,2]
[359072536,1745694063616,-8215.64561793,0.00019585,2]
[359072537,1745694063646,-164.75098625,0.00019593,2]
[359072538,1745694063677,-204.02430385,0.00019593,2]
[359072539,1745694063711,-500.0,0.00019593,2]
[359072540,1745694063744,-500.0,0.00019593,2]
[359072541,1745694063778,-605.840136,0.00019593,2]
[359072542,1745694063810,-400.0,0.00019593,2]
[359072543,1745694063839,-400.0,0.00019593,2]
[359072544,1745694063867,-400.0,0.00019593,2]
[359072545,1745694063896,-895.66,0.00019593,2]
[359072546,1745694063928,-235.18471082,0.00019593,2]
[359072547,1745694063957,-400.0,0.00019593,2]
[359072548,1745694063987,-487.44,0.00019593,2]
[359072549,1745694064018,-400.0,0.00019593,2]
[359072550,1745694064047,-458.53,0.00019593,2]
[359072551,1745694064075,-626.21,0.00019593,2]
[359072552,1745694064104,-400.0,0.00019593,2]
[359072553,1745694064133,-400.0,0.00019593,2]
[359072554,1745694064161,-500.0,0.00019593,2]
[359072555,1745694064190,-473.44,0.00019593,2]
[359072556,1745694064220,-400.0,0.00019593,2]
[359072557,1745694064248,-400.0,0.00019593,2]
[359072558,1745694064275,-400.0,0.00019593,2]
[359072559,1745694064304,-400.0,0.00019593,2]
[359072560,1745694064332,-400.0,0.00019593,2]
[359072561,1745694064359,-400.0,0.00019593,2]
[359072562,1745694064386,-500.0,0.00019593,2]
[359072563,1745694064415,-400.0,0.00019593,2]
[359072564,1745694064442,-400.0,0.00019593,2]
[359072565,1745694064472,-476.07,0.00019593,2]
[359072566,1745694064501,-376.0449316,0.00019593,2]
[359072567,1745694064528,-616.09,0.00019593,2]
[359072568,1745694064556,-400.0,0.00019593,2]
[359072569,1745694064584,-513.56333116,0.00019593,2]
[359072570,1745694064612,-400.0,0.00019593,2]
[359072571,1745694064641,-676.23,0.00019593,2]
[359072572,1745694064669,-606.28,0.00019593,2]
[359072573,1745694064696,-209.956101,0.00019593,2]
[359072574,1745694064726,-400.0,0.00019593,2]
[359072575,1745694064755,-746.64,0.00019593,2]
[359072576,1745694064783,-400.0,0.00019593,2]
[359072577,1745694064812,-907.47,0.00019593,2]
[359072578,1745694064840,-400.0,0.00019593,2]
[359072579,1745694064868,-400.0,0.00019593,2]
[359072580,1745694064896,-415.33,0.00019593,2]
[359072581,1745694064927,-424.63,0.00019593,2]
[359072582,1745694065491,-641.08,0.00019593,2]
[359072583,1745694065517,-400.0,0.00019593,2]
[359072584,1745694065540,-720.72,0.00019593,2]
[359072585,1745694065563,-218.8517309,0.00019593,2]
[359072586,1745694065588,-400.0,0.00019593,2]
[359072587,1745694065612,-400.0,0.00019594,2]
[359072588,1745694065637,-400.0,0.00019594,2]
[359072589,1745694065659,-400.0,0.00019594,2]
[359072590,1745694065684,-400.0,0.00019594,2]
[359072591,1745694065708,-400.0,0.00019594,2]
[359072592,1745694065732,-400.0,0.00019594,2]
[359072593,1745694065755,-576.33,0.00019594,2]
[359072594,1745694065779,-400.0,0.00019594,2]
[359072595,1745694065803,-400.0,0.00019594,2]
[359072596,1745694065829,-658.37,0.00019594,2]
[359072597,1745694065853,-404.45,0.00019594,2]
[359072598,1745694065877,-620.87,0.00019594,2]
[359072599,1745694065900,-757.27,0.00019594,2]
[359072600,1745694065923,-702.66,0.00019594,2]
[359072601,1745694065946,-528.25,0.00019594,2]
[359072602,1745694065969,-432.24,0.00019594,2]
[359072603,1745694065993,-700.27,0.00019594,2]
[359072604,1745694066018,-400.0,0.00019594,2]
[359072605,1745694066045,-400.0,0.00019594,2]
[359072606,1745694066068,-455.2,0.00019594,2]
[359072607,1745694066091,-400.0,0.00019594,2]
[359072608,1745694066114,-679.21,0.00019594,2]
[359072609,1745694066139,-631.38,0.00019594,2]
[359072610,1745694066164,-498.17,0.00019594,2]
[359072611,1745694066188,-552.93,0.00019594,2]
[359072612,1745694066212,-400.0,0.00019594,2]
[359072613,1745694066235,-400.0,0.00019594,2]
[359072614,1745694066257,-809.86,0.00019594,2]
[359072615,1745694066281,-400.0,0.00019594,2]
[359072616,1745694066307,-400.0,0.00019594,2]
[359072617,1745694066331,-412.52,0.00019594,2]
[359072618,1745694066359,-515.55,0.00019594,2]
[359072619,1745694066384,-400.0,0.00019594,2]
[359072620,1745694066409,-652.48,0.00019594,2]
[359072621,1745694066433,-400.0,0.00019594,2]
[359072622,1745694066455,-400.0,0.00019594,2]
[359072623,1745694066479,-400.0,0.00019594,2]
[359072624,1745694066503,-400.0,0.00019594,2]
[359072625,1745694066526,-400.0,0.00019594,2]
[359072626,1745694066549,-500.0,0.00019594,2]
[359072627,1745694066573,-400.0,0.00019594,2]
[359072628,1745694066597,-400.0,0.00019594,2]
[359072629,1745694066621,-1108.67,0.00019594,2]
[359072630,1745694066645,-400.0,0.00019594,2]
[359072631,1745694066670,-400.0,0.00019594,2]
[359072632,1745694066694,-1000.4,0.00019594,2]
[359072633,1745694066717,-485.82820109,0.00019594,2]
[359072634,1745694066740,-632.64,0.00019594,2]
[359072635,1745694066765,-427.05,0.00019594,2]
[359072636,1745694066787,-400.0,0.00019594,2]
[359072637,1745694066809,-400.0,0.00019594,2]
[359072638,1745694066832,-400.0,0.00019594,2]
[359072639,1745694066855,-400.0,0.00019594,2]
[359072640,1745694066878,-839.77,0.00019594,2]
[359072641,1745694066900,-920.95,0.00019594,2]
[359072642,1745694066926,-400.0,0.00019594,2]
[359072643,1745694066949,-573.39,0.00019594,2]
[359072644,1745694066972,-400.0,0.00019594,2]
[359072645,1745694066995,-400.0,0.00019594,2]
[359072646,1745694067019,-400.0,0.00019594,2]
[359072647,1745694067040,-400.0,0.00019594,2]
[359072648,1745694067063,-448.42,0.00019594,2]
[359072649,1745694067087,-400.0,0.00019594,2]
[359072650,1745694067110,-400.0,0.00019594,2]
[359072651,1745694067133,-489.5,0.00019594,2]
[359072652,1745694067156,-400.0,0.00019594,2]
[359072653,1745694067183,-400.0,0.00019594,2]
[359072654,1745694067207,-400.0,0.00019594,2]
[359072655,1745694067230,-400.0,0.00019594,2]
[359072656,1745694067255,-743.95,0.00019594,2]
[359072657,1745694067282,-570.67,0.00019594,2]
[359072658,1745694067308,-400.0,0.00019594,2]
[359072659,1745694067332,-400.0,0.00019594,2]
[359072660,1745694067354,-466.56,0.00019594,2]
[359072661,1745694067376,-400.0,0.00019594,2]
[359072662,1745694067399,-714.16,0.00019594,2]
[359072663,1745694067421,-408.97,0.00019594,2]
[359072664,1745694067446,-857.17,0.00019594,2]
[359072665,1745694067470,-400.0,0.00019594,2]
[359072666,1745694067495,-400.0,0.00019594,2]
[359072667,1745694067521,-400.0,0.00019594,2]
[359072668,1745694067545,-551.65,0.00019594,2]
[359072669,1745694067568,-400.0,0.00019594,2]
[359072670,1745694067590,-400.0,0.00019594,2]
[359072671,1745694067613,-400.0,0.00019594,2]
[359072672,1745694067636,-400.0,0.00019594,2]
[359072673,1745694067660,-400.0,0.00019594,2]
[359072674,1745694067684,-400.0,0.00019594,2]
[359072675,1745694067706,-400.0,0.00019594,2]
[359072676,1745694067730,-400.0,0.00019594,2]
[359072677,1745694067754,-614.4,0.00019594,2]
[359072678,1745694067780,-664.95,0.00019594,2]
[359072679,1745694067806,-400.0,0.00019594,2]
[359072680,1745694067833,-789.49,0.00019594,2]
[359072681,1745694067858,-688.42,0.00019594,2]
[359072682,1745694067881,-400.0,0.00019594,2]
[359072683,1745694067904,-400.0,0.00019594,2]
[359072684,1745694067933,-755.83,0.00019594,2]
[359072685,1745694067958,-400.0,0.00019594,2]
[359072686,1745694067984,-604.95,0.00019594,2]
[359072687,1745694068010,-724.74,0.00019594,2]
[359072688,1745694068035,-400.0,0.00019594,2]
[359072689,1745694068061,-400.0,0.00019594,2]
[359072690,1745694068086,-400.0,0.00019594,2]
[359072691,1745694068110,-553.09,0.00019594,2]
[359072692,1745694068132,-400.0,0.00019594,2]
[359072693,1745694068155,-569.76,0.00019594,2]
[359072694,1745694068180,-532.38,0.00019594,2]
[359072695,1745694068204,-400.0,0.00019594,2]
[359072696,1745694068228,-400.0,0.00019594,2]
[359072697,1745694068252,-494.52,0.00019594,2]
[359072698,1745694068276,-716.88,0.00019594,2]
[359072699,1745694068300,-562.32,0.00019594,2]
[359072700,1745694068324,-400.0,0.00019594,2]
[359072701,1745694068346,-424.17,0.00019594,2]
[359072702,1745694068591,-440.49,0.00019594,2]
[359072703,1745694068616,-125021.57,0.00019594,2]
[359072704,1745694068639,-504.54,0.00019594,2]
[359072705,1745694068663,-400.0,0.00019594,2]
[359072706,1745694068687,-604.31,0.00019594,2]
[359072707,1745694068716,-516.22,0.00019594,2]
[359072708,1745694068739,-400.0,0.00019594,2]
[359072709,1745694068761,-784.11,0.00019594,2]
[359072710,1745694068783,-204.90741905,0.00019594,2]
[359072711,1745694068805,-1973.71,0.00019594,2]
[359072712,1745694068831,-492.08,0.00019594,2]
[359072713,1745694068853,-400.0,0.00019594,2]
[359072714,1745694068875,-452.17,0.00019594,2]
[359072715,1745694068899,-739.02,0.00019594,2]
[359072716,1745694068926,-501.12,0.00019594,2]
[359072717,1745694068950,-858.43,0.00019594,2]
[359072718,1745694068976,-613.97,0.00019594,2]
[359072719,1745694069003,-500.0,0.00019594,2]
[359072720,1745694069027,-1166.0,0.00019594,2]
[359072721,1745694069051,-400.0,0.00019594,2]
[359072722,1745694069075,-558.09,0.00019594,2]
[359072723,1745694069100,-400.0,0.00019594,2]
[359072724,1745694069125,-746.11,0.00019594,2]
[359072725,1745694069150,-653.2,0.00019594,2]
[359072726,1745694069172,-400.0,0.00019594,2]
[359072727,1745694069196,-1716.28,0.00019594,2]
[359072728,1745694069219,-700.58,0.00019594,2]
[359072729,1745694069242,-692.22,0.00019594,2]
[359072730,1745694069265,-783.84,0.00019594,2]
[359072731,1745694069288,-1058.64,0.00019594,2]
[359072732,1745694069311,-773.1,0.00019594,2]
[359072733,1745694069333,-400.0,0.00019594,2]
[359072734,1745694069356,-1246.72,0.00019594,2]
[359072735,1745694069379,-1119.61,0.00019594,2]
[359072736,1745694069402,-691.6,0.00019594,2]
[359072737,1745694069424,-872.82,0.00019594,2]
[359072738,1745694069447,-1271.42,0.00019594,2]
[359072739,1745694069470,-400.0,0.00019594,2]
[359072740,1745694069493,-400.0,0.00019594,2]
[359072741,1745694069515,-516.19667786,0.00019594,2]
[359072742,1745694069537,-242.10687269,0.00019594,2]
[359072743,1745694069560,-3388.83,0.00019594,2]
[359072744,1745694069585,-400.0,0.00019594,2]
[359072745,1745694069609,-400.0,0.00019594,2]
[359072746,1745694069632,-746.84,0.00019594,2]
[359072747,1745694069655,-434.78,0.00019594,2]
[359072748,1745694069678,-400.0,0.00019594,2]
[359072749,1745694069701,-607.99,0.00019594,2]
[359072750,1745694069724,-680.2,0.00019594,2]
[359072751,1745694069749,-565.99,0.00019594,2]
[359072752,1745694069772,-1162.88,0.00019594,2]
[359072753,1745694069796,-527.12,0.00019594,2]
[359072754,1745694069823,-1178.29,0.00019594,2]
[359072755,1745694069850,-440.15,0.00019594,2]
[359072756,1745694069874,-379.9336376,0.00019594,2]
[359072758,1745694201579,1000.0,0.00018781,2]
[359072759,1745694258324,150.0,0.00018668,7]
[359072760,1745694427310,712.99,0.00016719,2]
[359072761,1745694427519,712.99,0.00018983,2]
[359072768,1745694602454,2000.0,0.0002,4]
[359072769,1745694614658,-166.66,0.00019338,2]
[359072770,1745694614682,-143.27611056,0.0001937,2]
[359072772,1745694632246,-56.72388944,0.0001937,2]
[359072773,1745694632257,-273.54881711,0.00019372,2]
[359072774,1745694632405,-3932.40403704,0.00019372,2]
[359072775,1745694632435,-415.0,0.00019372,2]
[359072777,1745694632515,-456.40958204,0.00019372,2]
[359072780,1745694632527,-697.0,0.00019372,2]
[359072850,1745694635378,-13.85356577,0.00019372,2]
[359072851,1745694635760,-200.0,0.00019372,2]
[359072856,1745694638303,-7693.78399804,0.00019372,2]
[359072857,1745694638312,-200.0,0.00019402,2]
[359072858,1745694638322,-751.00659717,0.00019493,2]
[359072859,1745694638331,-1200.0,0.00019494,2]
[359072860,1745694638341,-300.0,0.00019494,2]
[359072861,1745694638351,-7976.80302426,0.00019495,2]
[359072862,1745694638361,-7976.80302422,0.0001954,2]
[359072863,1745694638370,-751.00659717,0.00019551,2]
[359072864,1745694638380,-500.0,0.00019573,2]
[359072865,1745694638392,-260.33,0.00019583,2]
[359072866,1745694638404,-260.33,0.00019583,2]
[359072867,1745694638414,-207.4,0.00019583,2]
[359072868,1745694638423,-260.33,0.00019584,2]
[359072869,1745694638432,-7976.80302422,0.00019585,2]
[359072870,1745694638443,-500.0,0.00019591,2]
[359072871,1745694638452,-624.0880952,0.00019591,2]
[359072872,1745694638463,-600.11,0.00019592,2]
[359072873,1745694638472,-400.0,0.00019592,2]
[359072874,1745694638482,-400.0,0.00019592,2]
[359072875,1745694638491,-453.71,0.00019592,2]
[359072876,1745694638501,-400.0,0.00019592,2]
[359072877,1745694638512,-814.55,0.00019592,2]
[359072879,1745694638522,-648.05,0.00019592,2]
[359072881,1745694638533,-590.42,0.00019592,2]
[359072883,1745694638544,-400.0,0.00019592,2]
[359072885,1745694638554,-897.81,0.00019592,2]
[359072887,1745694638564,-715.53,0.00019592,2]
[359072889,1745694638574,-400.0,0.00019592,2]
[359072890,1745694638584,-566.53,0.00019592,2]
[359072892,1745694638594,-705.0,0.00019592,2]
[359072894,1745694638603,-493.87,0.00019592,2]
[359072896,1745694638614,-1204.49,0.00019592,2]
[359072899,1745694638624,-759.25,0.00019592,2]
[359072900,1745694638633,-592.35,0.00019592,2]
[359072903,1745694638644,-501.08,0.00019592,2]
[359072904,1745694638654,-400.0,0.00019592,2]
[359072907,1745694638664,-7921.33,0.00019592,2]
[359072909,1745694638674,-400.0,0.00019592,2]
[359072911,1745694638684,-439.42,0.00019592,2]
[359072913,1745694638694,-400.0,0.00019592,2]
[359072915,1745694638704,-446.82,0.00019592,2]
[359072917,1745694638714,-879.98,0.00019592,2]
[359072919,1745694638724,-660.75,0.00019592,2]
[359072921,1745694638734,-400.0,0.00019592,2]
[359072923,1745694638744,-400.0,0.00019592,2]
[359072925,1745694638753,-547.94,0.00019592,2]
[359072926,1745694638763,-400.0,0.00019592,2]
[359072928,1745694638773,-400.0,0.00019592,2]
[359072930,1745694638782,-400.0,0.00019592,2]
[359072932,1745694638792,-400.0,0.00019592,2]
[359072934,1745694638801,-857.97,0.00019592,2]
[359072935,1745694638811,-166674.99834564,0.00019592,2]
[359072937,1745694638820,-366.69980046,0.00019593,2]
[359072939,1745694638829,-432.45849739,0.00019593,2]
[359072941,1745694638840,-400.0,0.00019593,2]